bitfinex/quotes_BTCUSD_20250719
["timestamp","ask_amount","ask_price","bid_price","bid_amount"]
[1752943601933,0.19979146,118060.0,118050.0,0.75608036]
[1752943602518,0.19670146,118060.0,118050.0,0.75608036]
[1752943602931,0.18841541,118060.0,118050.0,0.75608036]
[1752943603151,0.18841541,118060.0,118050.0,0.77188036]
[1752943603152,0.18634541,118060.0,118050.0,0.77188036]
[1752943603565,0.18634541,118060.0,118050.0,0.77498036]
[1752943604828,0.18634541,118060.0,118050.0,0.59432113]
[1752943605125,0.19501191,118060.0,118050.0,0.77498036]
[1752943605558,0.19501191,118060.0,118050.0,0.59432113]
[1752943605779,0.19501191,118060.0,118050.0,0.77498036]
[1752943606376,0.19501191,118060.0,118050.0,0.59432113]
[1752943606539,0.19501191,118060.0,118050.0,0.77498036]
[1752943610523,0.18634541,118060.0,118050.0,0.77498036]
[1752943612180,0.19483038,118060.0,118050.0,0.77498036]
[1752943612807,0.18634541,118060.0,118050.0,0.77498036]
[1752943614190,0.18634541,118060.0,118050.0,0.79078036]
[1752943616763,0.18634541,118060.0,118050.0,0.96020009]
[1752943616994,0.1948156,118060.0,118050.0,1.16627133]
[1752943617555,0.0169396,118060.0,118050.0,2.01853081]
[1752943617765,0.16987531,118080.0,118070.0,0.55613188]
[1752943617976,0.16987531,118080.0,118070.0,1.13519062]
[1752943618241,0.16987531,118080.0,118070.0,0.96604094]
[1752943618852,0.17087531,118080.0,118070.0,0.96604094]
[1752943619267,0.17187531,118080.0,118070.0,0.79664991]
[1752943619490,0.17187531,118080.0,118070.0,0.96604094]
[1752943619696,0.17187531,118080.0,118070.0,0.97451042]
[1752943619980,0.17187531,118080.0,118070.0,0.79385119]
[1752943620220,0.17187531,118080.0,118070.0,0.79664991]
[1752943620448,0.01943549,118080.0,118070.0,1.17210787]
[1752943620675,0.03637236,118080.0,118070.0,2.76643787]
[1752943620906,0.03637236,118080.0,118070.0,2.77490663]
[1752943621261,0.03537236,118080.0,118070.0,2.77490663]
[1752943621488,0.02690367,118080.0,118070.0,2.77490663]
[1752943621745,0.02590367,118080.0,118070.0,2.77590663]
[1752943621997,0.01743513,118080.0,118070.0,2.78644758]
[1752943622230,0.0259036,118080.0,118070.0,3.53703858]
[1752943622447,0.0259036,118080.0,118070.0,3.40614458]
[1752943622663,0.0259036,118080.0,118070.0,3.37536358]
[1752943623121,0.0259036,118080.0,118070.0,3.41082858]
[1752943623350,0.03437214,118080.0,118070.0,3.36020758]
[1752943623572,0.0259036,118080.0,118070.0,3.31385658]
[1752943624236,0.0259036,118080.0,118070.0,3.33044858]
[1752943624452,0.00049862,118080.0,118070.0,3.33044858]
[1752943625104,0.0089668,118080.0,118070.0,3.36985658]
[1752943625794,0.01743513,118080.0,118070.0,3.36985658]
[1752943625973,0.01743506,118080.0,118070.0,3.36985658]
[1752943626248,0.01743506,118080.0,118070.0,3.41877558]
[1752943626434,0.01743506,118080.0,118070.0,3.33235458]
[1752943626722,0.0089668,118080.0,118070.0,3.33235458]
[1752943627154,0.01743513,118080.0,118070.0,3.36478158]
[1752943627361,0.0089668,118080.0,118070.0,3.36478158]
[1752943627569,0.01743513,118080.0,118070.0,3.36478158]
[1752943627744,0.0089668,118080.0,118070.0,3.36478158]
[1752943627969,0.01743513,118080.0,118070.0,3.36478158]
[1752943628172,0.01743506,118080.0,118070.0,3.46643558]
[1752943628681,0.0089668,118080.0,118070.0,3.46643558]
[1752943628915,0.0174352,118080.0,118070.0,3.44985358]
[1752943629134,0.01743513,118080.0,118070.0,3.43552458]
[1752943630013,0.01743513,118080.0,118070.0,3.46606058]
[1752943630264,0.01743513,118080.0,118070.0,3.46547658]
[1752943630689,0.0259036,118080.0,118070.0,3.46547658]
[1752943630935,0.0259036,118080.0,118070.0,3.33817858]
[1752943631155,0.0259036,118080.0,118070.0,2.91872012]
[1752943631369,0.0259036,118080.0,118070.0,3.25297458]
[1752943632030,0.03437214,118080.0,118070.0,3.31195758]
[1752943632874,0.03437214,118080.0,118070.0,1.21751958]
[1752943633089,0.03437214,118080.0,118070.0,3.31537758]
[1752943633929,0.03437214,118080.0,118070.0,1.21751958]
[1752943634100,0.03437214,118080.0,118070.0,3.37939758]
[1752943634931,0.03437214,118080.0,118070.0,3.34887858]
[1752943635146,0.04284075,118080.0,118070.0,3.34561158]
[1752943635277,0.04284075,118080.0,118070.0,1.21751958]
[1752943635494,0.21221809,118080.0,118070.0,3.19382154]
[1752943636013,0.21221809,118080.0,118070.0,3.16162954]
[1752943636413,0.21221809,118080.0,118070.0,3.15930954]
[1752943636947,0.04284126,118080.0,118070.0,3.13200858]
[1752943637161,0.21221845,118080.0,118070.0,2.60661351]
[1752943637369,0.18895283,118080.0,118070.0,0.75586036]
[1752943637574,0.18681283,118080.0,118070.0,0.75586036]
[1752943637782,0.18681283,118080.0,118070.0,0.74131951]
[1752943637783,0.18895283,118080.0,118070.0,0.74131951]
[1752943637987,0.18895283,118080.0,118070.0,0.89536336]
[1752943638209,0.18895283,118080.0,118070.0,0.87067836]
[1752943638647,0.19199283,118080.0,118070.0,0.75586036]
[1752943639198,0.18681283,118080.0,118070.0,1.05739194]
[1752943639421,0.18681283,118080.0,118070.0,1.07349194]
[1752943639623,0.18681283,118080.0,118070.0,0.90410091]
[1752943639862,0.17834414,118080.0,118070.0,0.89563136]
[1752943641391,0.17834414,118080.0,118070.0,1.06502239]
[1752943641568,0.17834414,118080.0,118070.0,0.89563136]
[1752943644732,0.17834414,118080.0,118070.0,0.71497213]
[1752943644996,0.17834414,118080.0,118070.0,0.89563136]
[1752943645781,0.16511474,118080.0,118070.0,0.89563136]
[1752943647345,0.16511474,118080.0,118070.0,1.07349194]
[1752943648267,0.16511474,118080.0,118070.0,0.89563136]
[1752943650056,0.16511474,118080.0,118070.0,1.06502239]
[1752943651516,0.16511474,118080.0,118070.0,0.89563136]
[1752943651814,0.16511474,118080.0,118070.0,0.71497213]
[1752943652068,0.16511474,118080.0,118070.0,0.89563136]
[1752943652471,0.16511474,118080.0,118070.0,0.71497213]
[1752943652674,0.16511474,118080.0,118070.0,0.87953136]
[1752943653101,0.16710474,118080.0,118070.0,0.74637136]
[1752943653306,0.20106474,118080.0,118070.0,0.75379036]
[1752943655431,0.17026474,118080.0,118070.0,0.75379036]
[1752943655581,0.17026474,118080.0,118070.0,0.75592036]
[1752943656040,0.16710474,118080.0,118070.0,0.75592036]
[1752943656507,0.16710474,118080.0,118070.0,0.92531139]
[1752943656948,0.16710474,118080.0,118070.0,0.93378094]
[1752943657164,0.16511474,118080.0,118070.0,0.93378094]
[1752943657387,0.20402316,118090.0,118070.0,0.95008094]
[1752943657650,0.17791567,118090.0,118080.0,0.93987842]
[1752943657845,0.18638357,118090.0,118080.0,1.14774227]
[1752943658055,0.18638357,118090.0,118080.0,1.15621067]
[1752943658501,0.18638357,118090.0,118080.0,1.14774227]
[1752943658718,0.18638357,118090.0,118080.0,1.14774241]
[1752943660174,0.17791567,118090.0,118080.0,1.1392738]
[1752943660894,0.16944756,118090.0,118080.0,1.13080511]
[1752943662801,0.16944756,118090.0,118080.0,0.95295959]
[1752943663330,0.16944756,118090.0,118080.0,0.93665959]
[1752943664738,0.16944756,118090.0,118080.0,1.10603628]
[1752943665165,0.16944756,118090.0,118080.0,1.11450504]
[1752943666221,0.16944756,118090.0,118080.0,2.11233273]
[1752943667265,0.16944756,118090.0,118080.0,2.06283404]
[1752943667478,0.16944756,118090.0,118080.0,2.02283404]
[1752943668124,0.16944756,118090.0,118080.0,2.01436528]
[1752943668331,0.16944756,118090.0,118080.0,1.93590428]
[1752943668912,0.16944756,118090.0,118080.0,1.74138628]
[1752943670411,0.16944756,118090.0,118080.0,1.74985511]
[1752943672484,0.16944756,118090.0,118080.0,1.38853665]
[1752943672896,0.16944756,118090.0,118080.0,1.49270959]
[1752943673121,0.16944756,118090.0,118080.0,1.47680959]
[1752943673918,0.16944756,118090.0,118080.0,1.45952859]
[1752943674150,0.16944756,118090.0,118080.0,1.63737404]
[1752943674376,0.16944756,118090.0,118080.0,1.65317404]
[1752943675257,0.19485037,118090.0,118080.0,1.68511091]
[1752943675513,0.00379109,118090.0,118080.0,1.68511091]
[1752943675711,0.02072696,118090.0,118080.0,1.68511091]
[1752943676769,0.24861119,118110.0,118100.0,0.36300817]
[1752943676983,0.08470922,118110.0,118100.0,1.16802596]
[1752943677196,0.02539882,118110.0,118100.0,1.17095596]
[1752943677656,0.27258603,118130.0,118110.0,0.58007391]
[1752943677885,0.04241294,118120.0,118110.0,0.58854009]
[1752943678109,0.04241294,118120.0,118110.0,0.80966037]
[1752943678325,0.19480113,118120.0,118110.0,0.79272794]
[1752943678778,0.19480113,118120.0,118110.0,0.80119433]
[1752943679008,0.19480113,118120.0,118110.0,0.79272794]
[1752943679287,0.18633538,118120.0,118110.0,1.03337231]
[1752943679504,0.17786956,118120.0,118110.0,1.03337231]
[1752943680345,0.16940367,118120.0,118110.0,0.78426148]
[1752943680594,0.17155367,118120.0,118110.0,0.57273113]
[1752943680816,0.20599367,118120.0,118110.0,0.57097113]
[1752943681855,0.17449367,118120.0,118110.0,0.57097113]
[1752943685107,0.17449367,118120.0,118110.0,0.57293113]
[1752943686062,0.17449367,118120.0,118110.0,0.57097113]
[1752943686500,0.19049367,118120.0,118110.0,0.57117113]
[1752943686716,0.20569367,118120.0,118110.0,0.57117113]
[1752943688130,0.17449367,118120.0,118110.0,0.57117113]
[1752943689752,0.20569367,118120.0,118110.0,0.42551028]
[1752943689988,0.20569367,118120.0,118110.0,0.55659028]
[1752943690945,0.17155367,118120.0,118110.0,0.55855028]
[1752943691375,0.18633516,118120.0,118110.0,1.02506585]
[1752943691578,0.18633516,118120.0,118110.0,1.03353239]
[1752943691891,0.18633538,118120.0,118110.0,1.04199885]
[1752943693091,0.18633538,118120.0,118110.0,1.03353246]
[1752943693287,0.18633538,118120.0,118110.0,1.041999]
[1752943693946,0.18633538,118120.0,118110.0,0.79288809]
[1752943694153,0.17786963,118120.0,118110.0,1.03453246]
[1752943694777,0.17786963,118120.0,118110.0,0.80335463]
[1752943695023,0.17786963,118120.0,118110.0,0.60862113]
[1752943695241,0.18295963,118120.0,118110.0,0.57509113]
[1752943696121,0.18001963,118120.0,118110.0,0.57509113]
[1752943696863,0.18001963,118120.0,118110.0,0.76135809]
[1752943697072,0.17786963,118120.0,118110.0,0.76135809]
[1752943697278,0.17786963,118120.0,118110.0,1.00200246]
[1752943697481,0.17786963,118120.0,118110.0,1.013399]
[1752943697688,0.17786963,118120.0,118110.0,1.029599]
[1752943697897,0.17786963,118120.0,118110.0,1.824583]
[1752943698114,0.18633538,118120.0,118110.0,1.84151571]
[1752943698554,0.19480077,118120.0,118110.0,1.84151571]
[1752943699570,0.19480077,118120.0,118110.0,1.60087134]
[1752943699781,0.19480077,118120.0,118110.0,1.84151571]
[1752943700346,0.19480077,118120.0,118110.0,1.11289781]
[1752943700548,0.18311949,118120.0,118110.0,0.57313113]
[1752943700753,0.21441949,118120.0,118110.0,0.57313113]
[1752943701179,0.18311949,118120.0,118110.0,0.57313113]
[1752943701820,0.18311949,118120.0,118110.0,0.57524113]
[1752943703359,0.45506386,118120.0,118110.0,0.55859028]
[1752943703578,0.21441949,118120.0,118110.0,0.55859028]
[1752943703995,0.45506386,118120.0,118110.0,0.55859028]
[1752943704192,0.21441949,118120.0,118110.0,0.55859028]
[1752943705015,0.21441949,118120.0,118110.0,0.55759028]
[1752943706462,0.21541949,118120.0,118110.0,0.55659028]
[1752943721898,0.18411949,118120.0,118110.0,0.55659028]
[1752943723391,0.18411949,118120.0,118110.0,0.55870028]
[1752943723587,0.18096949,118120.0,118110.0,0.55870028]
[1752943725896,0.17886949,118120.0,118110.0,1.00263832]
[1752943726121,0.17886949,118120.0,118110.0,1.01957147]
[1752943726390,0.17886949,118120.0,118110.0,0.83330465]
[1752943729392,0.17886949,118120.0,118110.0,1.00263832]
[1752943729603,0.17886949,118120.0,118110.0,1.01957161]
[1752943730196,0.17886949,118120.0,118110.0,1.03411246]
[1752943730429,0.17886949,118120.0,118110.0,1.04257885]
[1752943732240,0.17886949,118120.0,118110.0,1.50974685]
[1752943734222,0.17886949,118120.0,118110.0,1.50128046]
[1752943734426,0.17886949,118120.0,118110.0,1.509747]
[1752943734982,0.17886949,118120.0,118110.0,1.518192]
[1752943735241,0.17886949,118120.0,118110.0,1.51821346]
[1752943735447,0.16564399,118120.0,118110.0,1.52667985]
[1752943736418,0.16564399,118120.0,118110.0,1.51821346]
[1752943737481,0.15717817,118120.0,118110.0,0.79346809]
[1752943737702,0.15717817,118120.0,118110.0,1.20316346]
[1752943738469,0.15717817,118120.0,118110.0,0.77625213]
[1752943738666,0.15717817,118120.0,118110.0,0.8320455]
[1752943739097,0.15717817,118120.0,118110.0,0.8480455]
[1752943740334,0.15717817,118120.0,118110.0,0.60740113]
[1752943740555,0.15717817,118120.0,118110.0,0.8480455]
[1752943740969,0.15717817,118120.0,118110.0,0.78791247]
[1752943741831,0.15717817,118120.0,118110.0,0.76895247]
[1752943742400,0.15915817,118120.0,118110.0,0.44282028]
[1752943742612,0.37451951,118120.0,118110.0,0.55835028]
[1752943742926,0.19400817,118120.0,118110.0,0.55835028]
[1752943745388,0.16210817,118120.0,118110.0,0.55835028]
[1752943751309,0.15717817,118120.0,118110.0,0.56039028]
[1752943751533,0.15717817,118120.0,118110.0,1.0129404]
[1752943751748,0.17410988,118120.0,118110.0,1.04441432]
[1752943751977,0.17410988,118120.0,118110.0,1.05288071]
[1752943752187,0.17410988,118120.0,118110.0,1.08674403]
[1752943752404,0.17410988,118120.0,118110.0,1.0867436]
[1752943753776,0.17410988,118120.0,118110.0,1.07827735]
[1752943754232,0.17410988,118120.0,118110.0,0.83755758]
[1752943754407,0.17410988,118120.0,118110.0,1.07827735]
[1752943754605,0.17410988,118120.0,118110.0,1.06134464]
[1752943754880,0.17410988,118120.0,118110.0,1.05287818]
[1752943755178,0.17410988,118120.0,118110.0,1.06134472]
[1752943756950,0.17410988,118120.0,118110.0,0.8036918]
[1752943757168,0.17410988,118120.0,118110.0,1.04441157]
[1752943757381,0.17410988,118120.0,118110.0,1.05287825]
[1752943757602,0.17410988,118120.0,118110.0,0.60355813]
[1752943757818,0.17410988,118120.0,118110.0,0.8410479]
[1752943758026,0.17608988,118120.0,118110.0,0.60032813]
[1752943758678,0.17903988,118120.0,118110.0,0.60032813]
[1752943759125,0.17608988,118120.0,118110.0,0.61542813]
[1752943759356,0.17410988,118120.0,118110.0,0.7879918]
[1752943759582,0.17410988,118120.0,118110.0,0.8030918]
[1752943760197,0.17410988,118120.0,118110.0,0.63375813]
[1752943761280,0.17410988,118120.0,118110.0,0.8030918]
[1752943761530,0.17410988,118120.0,118110.0,0.63375813]
[1752943761956,0.17607988,118120.0,118110.0,0.60032813]
[1752943762306,0.17607988,118120.0,118110.0,0.58374728]
[1752943762528,0.17914988,118120.0,118110.0,0.55835028]
[1752943763572,0.17914988,118120.0,118110.0,0.55759028]
[1752943766595,0.21004988,118120.0,118110.0,0.55755028]
[1752943768405,0.21004988,118120.0,118110.0,0.08551028]
[1752943768622,0.20870021,118110.0,118100.0,0.025399]
[1752943768804,0.21067021,118110.0,118100.0,0.24286928]
[1752943769029,0.21374021,118110.0,118100.0,0.21747028]
[1752943769885,0.21374021,118110.0,118100.0,0.21847028]
[1752943770095,0.21374021,118110.0,118100.0,0.21947028]
[1752943771089,0.21374021,118110.0,118100.0,0.21847028]
[1752943771278,0.21374021,118110.0,118100.0,0.21747028]
[1752943772788,0.21474021,118110.0,118100.0,0.21747028]
[1752943784753,0.18384021,118110.0,118100.0,0.21747028]
[1752943786302,0.18384021,118110.0,118100.0,0.40015996]
[1752943786950,0.18384021,118110.0,118100.0,0.21959028]
[1752943787172,0.18384021,118110.0,118100.0,0.40015996]
[1752943793286,0.18384021,118110.0,118100.0,0.21959028]
[1752943795432,0.18384021,118110.0,118100.0,0.40015996]
[1752943796464,0.18384021,118110.0,118100.0,0.21959028]
[1752943800024,0.18384021,118110.0,118100.0,0.21747028]
[1752943800270,0.18384021,118110.0,118100.0,0.08551028]
[1752943800510,0.39640989,118110.0,118100.0,0.21671028]
[1752943800731,0.17783032,118090.0,118080.0,0.04684085]
[1752943800984,0.17991032,118090.0,118080.0,0.78630081]
[1752943801209,0.17991032,118090.0,118080.0,0.77030081]
[1752943802134,0.17783032,118090.0,118080.0,0.78927081]
[1752943802357,0.17783032,118090.0,118080.0,0.79127081]
[1752943803501,0.17783032,118090.0,118080.0,0.79327081]
[1752943804931,0.18617973,118090.0,118080.0,0.79327081]
[1752943805596,0.17783032,118090.0,118080.0,0.79327081]
[1752943807385,0.17783032,118090.0,118080.0,0.61270113]
[1752943807602,0.17783032,118090.0,118080.0,0.79327081]
[1752943811090,0.17783032,118090.0,118080.0,0.61270113]
[1752943811314,0.17783032,118090.0,118080.0,0.79327081]
[1752943814639,0.17783032,118090.0,118080.0,0.97384049]
[1752943815845,0.17307027,118090.0,118080.0,1.14321718]
[1752943816076,0.16460237,118090.0,118080.0,0.97384049]
[1752943817251,0.16460237,118090.0,118080.0,1.14321718]
[1752943817493,0.16460237,118090.0,118080.0,1.15168601]
[1752943818241,0.16460237,118090.0,118080.0,0.97384049]
[1752943820806,0.16460237,118090.0,118080.0,0.61270113]
[1752943821035,0.16460237,118090.0,118080.0,0.97384049]
[1752943821986,0.16460237,118090.0,118080.0,0.61270113]
[1752943822209,0.16460237,118090.0,118080.0,0.97384049]
[1752943822682,0.16460237,118090.0,118080.0,1.14321718]
[1752943823634,0.16460237,118090.0,118080.0,0.97384049]
[1752943830481,0.16985237,118090.0,118080.0,0.57533113]
[1752943830695,0.16985237,118090.0,118080.0,0.93647049]
[1752943831305,0.20055237,118090.0,118080.0,0.42951028]
[1752943831536,0.20055237,118090.0,118080.0,0.56043028]
[1752943831939,0.44889856,118090.0,118080.0,0.08951028]
[1752943832136,0.44889856,118090.0,118080.0,0.135]
[1752943832312,0.44889856,118090.0,118080.0,0.133]
[1752943832795,0.44889856,118090.0,118080.0,0.13408]
[1752943833201,0.44889856,118090.0,118080.0,0.13308]
[1752943833556,0.44889856,118090.0,118080.0,0.13108]
[1752943834021,0.44889856,118090.0,118080.0,0.13208]
[1752943834222,0.38112205,118090.0,118080.0,0.13108]
[1752943834432,0.38312205,118090.0,118080.0,0.13108]
[1752943834607,0.20355237,118090.0,118080.0,0.13108]
[1752943835383,0.38412205,118090.0,118080.0,0.13108]
[1752943839378,0.20355237,118090.0,118080.0,0.13108]
[1752943840836,0.16969237,118090.0,118080.0,0.62059847]
[1752943841086,0.18929807,118090.0,118080.0,0.80154377]
[1752943841300,0.01693551,118090.0,118080.0,1.17302149]
[1752943841752,0.01693529,118090.0,118080.0,1.17302149]
[1752943841972,0.03387123,118090.0,118080.0,1.17302149]
[1752943842197,0.20323358,118090.0,118080.0,1.16455316]
[1752943842851,0.03387123,118090.0,118080.0,1.99626949]
[1752943843066,0.03387123,118090.0,118080.0,1.87588138]
[1752943843387,0.20323358,118090.0,118080.0,1.86741305]
[1752943844320,0.20323358,118090.0,118080.0,1.87588145]
[1752943844525,0.20323415,118090.0,118080.0,1.87588145]
[1752943844936,0.1947664,118090.0,118080.0,1.86741305]
[1752943845163,0.1862985,118090.0,118080.0,1.85894451]
[1752943846525,0.17783046,118090.0,118080.0,1.85894451]
[1752943846775,0.17783046,118090.0,118080.0,1.8504759]
[1752943846999,0.16936235,118090.0,118080.0,1.85894459]
[1752943847340,0.16936235,118090.0,118080.0,1.8674132]
[1752943848878,0.16936235,118090.0,118080.0,1.87588174]
[1752943849086,0.16936235,118090.0,118080.0,1.8504759]
[1752943850882,0.16936235,118090.0,118080.0,1.60972465]
[1752943851100,0.16936235,118090.0,118080.0,1.17345913]
[1752943851321,0.16936235,118090.0,118080.0,1.41421038]
[1752943852346,0.16936235,118090.0,118080.0,1.58358707]
[1752943852562,0.16936235,118090.0,118080.0,1.41421038]
[1752943853220,0.16936235,118090.0,118080.0,1.58358707]
[1752943853440,0.16936235,118090.0,118080.0,1.5920559]
[1752943854115,0.16936235,118090.0,118080.0,1.41421038]
[1752943854945,0.16936235,118090.0,118080.0,1.03314738]
[1752943855359,0.16936235,118090.0,118080.0,1.00701438]
[1752943856242,0.16936235,118090.0,118080.0,0.84938238]
[1752943856985,0.16936235,118090.0,118080.0,0.96902738]
[1752943858644,0.16936235,118090.0,118080.0,0.84938238]
[1752943859669,0.16936235,118090.0,118080.0,1.02299138]
[1752943860702,0.16936235,118090.0,118080.0,0.89860513]
[1752943860937,0.16936235,118090.0,118080.0,1.06781738]
[1752943861648,0.16936235,118090.0,118080.0,0.71830238]
[1752943861872,0.17441235,118090.0,118080.0,0.68290238]
[1752943862101,0.20571235,118090.0,118080.0,0.57105113]
[1752943863141,0.17441235,118090.0,118080.0,0.57105113]
[1752943864679,0.20571235,118090.0,118080.0,0.42551028]
[1752943864892,0.51424011,118090.0,118080.0,0.55643028]
[1752943865124,0.45413208,118090.0,118080.0,0.55643028]
[1752943865328,0.27348886,118090.0,118080.0,0.55643028]
[1752943865547,0.27348886,118090.0,118080.0,0.21643028]
[1752943865790,0.45413208,118090.0,118080.0,0.21643028]
[1752943866031,0.17786043,118070.0,118060.0,0.19387142]
[1752943866244,0.17997043,118070.0,118060.0,0.42488255]
[1752943866432,0.18291043,118070.0,118060.0,0.57101113]
[1752943866700,0.18291043,118070.0,118060.0,0.75376435]
[1752943866962,0.18291043,118070.0,118060.0,0.85731235]
[1752943867186,0.17997043,118070.0,118060.0,0.91854347]
[1752943867413,0.17997043,118070.0,118060.0,0.91904209]
[1752943868139,0.17786043,118070.0,118060.0,0.93444209]
[1752943868390,0.17786043,118070.0,118060.0,1.13073773]
[1752943868391,0.18632976,118070.0,118060.0,1.13073773]
[1752943868591,0.16939103,118070.0,118060.0,1.13073773]
[1752943868809,0.16939103,118070.0,118060.0,0.84931409]
[1752943869022,0.16939103,118070.0,118060.0,1.18152609]
[1752943869472,0.16939103,118070.0,118060.0,0.83864075]
[1752943869708,0.16939103,118070.0,118060.0,1.05552209]
[1752943870837,0.16939103,118070.0,118060.0,1.05752209]
[1752943871909,0.16939103,118070.0,118060.0,1.22692747]
[1752943872184,0.16939103,118070.0,118060.0,1.06599235]
[1752943872392,0.16939103,118070.0,118060.0,1.05752209]
[1752943879575,0.16939103,118070.0,118060.0,1.23539773]
[1752943879763,0.16939103,118070.0,118060.0,1.02918973]
[1752943879967,0.16939103,118070.0,118060.0,1.36050673]
[1752943883013,0.16939103,118070.0,118060.0,1.19110135]
[1752943883454,0.16939103,118070.0,118060.0,1.10973609]
[1752943883649,0.16939103,118070.0,118060.0,1.0416811]
[1752943883895,0.16939103,118070.0,118060.0,0.9903811]
[1752943886511,0.16939103,118070.0,118060.0,1.15978648]
[1752943886821,0.16939103,118070.0,118060.0,0.9903811]
[1752943888288,0.16939103,118070.0,118060.0,0.57641676]
[1752943888516,0.17452103,118070.0,118060.0,0.57641676]
[1752943888732,0.17452103,118070.0,118060.0,0.8151811]
[1752943889180,0.17452103,118070.0,118060.0,0.7549705]
[1752943889632,0.20522103,118070.0,118060.0,0.7549705]
[1752943890533,0.20522103,118070.0,118060.0,0.57430676]
[1752943890739,0.20522103,118070.0,118060.0,0.4290089]
[1752943890940,0.20522103,118070.0,118060.0,0.2199289]
[1752943891380,0.21362418,118070.0,118060.0,0.2199289]
[1752943891594,0.21362418,118070.0,118060.0,0.00249862]
[1752943891595,0.46206443,118070.0,118060.0,0.00249862]
[1752943891799,0.46206443,118070.0,118060.0,0.13341862]
[1752943892005,0.46206443,118070.0,118060.0,0.13141862]
[1752943892220,0.28140069,118070.0,118060.0,0.13141862]
[1752943893505,0.46206443,118070.0,118060.0,0.13141862]
[1752943893762,0.28140069,118070.0,118060.0,0.13141862]
[1752943893994,0.21362418,118070.0,118060.0,0.13141862]
[1752943904557,0.39428792,118070.0,118060.0,0.13141862]
[1752943911818,0.20522103,118070.0,118060.0,0.13141862]
[1752943912029,0.20522103,118070.0,118060.0,0.31208236]
[1752943912030,0.17452103,118070.0,118060.0,0.31208236]
[1752943918313,0.17452103,118070.0,118060.0,0.13141862]
[1752943919651,0.17452103,118070.0,118060.0,0.31208236]
[1752943922533,0.38648477,118070.0,118060.0,0.13141862]
[1752943922723,0.45426128,118070.0,118060.0,0.13133862]
[1752943923468,0.58510128,118070.0,118060.0,0.00049862]
[1752943924140,0.58610128,118070.0,118060.0,0.00049862]
[1752943926087,0.76676502,118070.0,118060.0,0.00049862]
[1752943926314,0.8532753,118070.0,118060.0,0.00049862]
[1752943926823,0.17792071,118030.0,118020.0,0.05006085]
[1752943927016,0.17792071,118030.0,118020.0,0.44611487]
[1752943927442,0.17792071,118030.0,118020.0,0.26545113]
[1752943927659,0.17792071,118030.0,118020.0,0.78611487]
[1752943927881,0.17792071,118030.0,118020.0,0.60857113]
[1752943928082,0.18000071,118030.0,118020.0,0.60745113]
[1752943928297,0.18000071,118030.0,118020.0,0.78819921]
[1752943928912,0.18323071,118030.0,118020.0,0.41579921]
[1752943929115,0.18323071,118030.0,118020.0,0.23713547]
[1752943929549,0.18323071,118030.0,118020.0,0.41779921]
[1752943929755,0.18323071,118030.0,118020.0,0.23713547]
[1752943929966,0.18323071,118030.0,118020.0,0.23513547]
[1752943930180,0.18323071,118030.0,118020.0,0.22159462]
[1752943930654,0.18323071,118030.0,118020.0,0.21959462]
[1752943930855,0.18323071,118030.0,118020.0,0.22059462]
[1752943931067,0.1918093,118030.0,118020.0,0.22059462]
[1752943931271,0.1918093,118030.0,118020.0,0.21843462]
[1752943934607,0.18000071,118030.0,118020.0,0.40125836]
[1752943934711,0.18000071,118030.0,118020.0,0.41665836]
[1752943934927,0.18854628,118030.0,118020.0,0.41665836]
[1752943935785,0.18000071,118030.0,118020.0,0.41665836]
[1752943936480,0.18000071,118030.0,118020.0,0.23599462]
[1752943936702,0.16468561,118030.0,118020.0,0.6166421]
[1752943936910,0.17315788,118030.0,118020.0,0.63118295]
[1752943937345,0.18163008,118030.0,118020.0,1.83326795]
[1752943937560,0.18163008,118030.0,118020.0,2.00273075]
[1752943937772,0.1901025,118030.0,118020.0,2.01967652]
[1752943937977,0.1901025,118030.0,118020.0,2.02814937]
[1752943938571,0.1901025,118030.0,118020.0,2.01967659]
[1752943938942,0.1901025,118030.0,118020.0,2.02814937]
[1752943939375,0.1901025,118030.0,118020.0,1.67529459]
[1752943939587,0.1901025,118030.0,118020.0,1.71946959]
[1752943939793,0.1816303,118030.0,118020.0,1.71946959]
[1752943939939,0.1816303,118030.0,118020.0,1.35814211]
[1752943940144,0.16468561,118030.0,118020.0,1.50629495]
[1752943940448,0.16468561,118030.0,118020.0,1.36200195]
[1752943941111,0.16468561,118030.0,118020.0,1.24168152]
[1752943941552,0.16468561,118030.0,118020.0,1.41114432]
[1752943941756,0.17315788,118030.0,118020.0,1.41961731]
[1752943942386,0.17315788,118030.0,118020.0,1.42809023]
[1752943943602,0.17315788,118030.0,118020.0,1.41961731]
[1752943943809,0.17315788,118030.0,118020.0,1.17861026]
[1752943944027,0.17315788,118030.0,118020.0,1.24168152]
[1752943944848,0.17315788,118030.0,118020.0,1.17861041]
[1752943945049,0.17315788,118030.0,118020.0,1.41961746]
[1752943946339,0.17315788,118030.0,118020.0,1.4365633]
[1752943947218,0.17315788,118030.0,118020.0,1.42809045]
[1752943948065,0.17315788,118030.0,118020.0,1.41961746]
[1752943949272,0.17315788,118030.0,118020.0,1.42809052]
[1752943949572,0.17315788,118030.0,118020.0,1.43656351]
[1752943951155,0.17315788,118030.0,118020.0,1.42809052]
[1752943952220,0.16468561,118030.0,118020.0,1.41961746]
[1752943952358,0.16468561,118030.0,118020.0,1.37702946]
[1752943953440,0.16468561,118030.0,118020.0,1.19909352]
[1752943953645,0.16468561,118030.0,118020.0,1.14712752]
[1752943954451,0.16468561,118030.0,118020.0,0.60985547]
[1752943954652,0.16468561,118030.0,118020.0,0.85086252]
[1752943956113,0.16468561,118030.0,118020.0,0.95491552]
[1752943956319,0.16468561,118030.0,118020.0,0.85086252]
[1752943956838,0.16468561,118030.0,118020.0,0.95491552]
[1752943957678,0.16468561,118030.0,118020.0,0.85086252]
[1752943958064,0.16678561,118030.0,118020.0,0.59053547]
[1752943958274,0.16990561,118030.0,118020.0,0.57293547]
[1752943958843,0.16990561,118030.0,118020.0,0.57492547]
[1752943959355,0.16990561,118030.0,118020.0,0.57293547]
[1752943959584,0.16990561,118030.0,118020.0,0.81394252]
[1752943960305,0.16990561,118030.0,118020.0,0.57293547]
[1752943960463,0.16990561,118030.0,118020.0,0.81394252]
[1752943962073,0.16990561,118030.0,118020.0,0.81593252]
[1752943962683,0.16990561,118030.0,118020.0,0.57492547]
[1752943962889,0.16990561,118030.0,118020.0,0.81593252]
[1752943963092,0.16990561,118030.0,118020.0,0.75571151]
[1752943963716,0.16990561,118030.0,118020.0,0.93649755]
[1752943965377,0.16990561,118030.0,118020.0,0.57492547]
[1752943965578,0.16990561,118030.0,118020.0,0.93649755]
[1752943966146,0.16678561,118030.0,118020.0,0.93649755]
[1752943966554,0.16468561,118030.0,118020.0,1.13265349]
[1752943966759,0.16468561,118030.0,118020.0,1.14865349]
[1752943966962,0.0084717,118040.0,118030.0,0.20064844]
[1752943967177,0.03388536,118040.0,118030.0,1.18726246]
[1752943967393,0.20331938,118040.0,118030.0,3.32490855]
[1752943967592,0.20332003,118040.0,118030.0,1.82559312]
[1752943967992,0.20332003,118040.0,118030.0,1.83406525]
[1752943969020,0.20332003,118040.0,118030.0,1.71342604]
[1752943969599,0.19484876,118040.0,118030.0,1.66037871]
[1752943970033,0.18841735,118040.0,118030.0,0.682974]
[1752943970233,0.19141735,118040.0,118030.0,0.682974]